Workbook

Sheet Notes
A1: Life expectancy estimates
A4: Life expectancy at birth has been used as a measure of the health status of the population in England and Wales since the 1840s. It was employed in some of the earliest reports of the Registrar General to illustrate the differences in mortality experienced by populations in different parts of the country. The tradition of using life expectancy as an indicator of geographic inequalities in health has been continued by the office for national statistics (ONS) since 2001, with the publication of sub-national life expectancy statistics. Period life expectancy at a given age for an area is the average number of years a person would live, if he or she experienced the particular area's age-specific mortality rates for that time period throughout his or her life. Meaning there is no guarantee that if the area you live in, has a life expectancy of 80, that you will live for 80 years. Several studies have shown that geographical variations in life expectancy can largely be accounted for by individual and area-based deprivation. The Marmot Review published in 2010 highlighted the fact that people living in the poorest neighbourhoods will on average, die seven years earlier than people living in the richest neighbourhoods. The difference in disability-free life expectancy is even greater, with the average difference between the most and least deprived areas being 17 years. This means people in poorer areas not only die sooner, but they will also spend more of their lives living with a disability. For society to have a healthy population it is essential to take action to both raise the general level of health and flatten the social gradient
A17: The tables and charts in this document have been produced using figures realised by the Office for National Statistics (ONS)
A19: Life expectancy at birth and at age 65 by local areas in England and Wales, 2012 to 2014
A20: Health Expectancies at birth by Middle Layer Super Output Areas, England, Inequality in Health and Life Expectancies within Upper Tier Local Authorities: 2009 to 2013
A21: Healthy life expectancy (HLE) and life expectancy (LE) at birth by upper tier local authority (UTLA) 2012-2014
A23: For further information, analysis and questions please contact the public health knowledge and intelligence team via | L23: phknowledge@lancashire.gov.uk
K25: Last updated : 16 / 03 / 2016

Sheet Lancashire district LE at birth
A1: District level estimated life expectancy at birth 2012-2014
A4: Female life expectancy at birth
A7: Area | B7: Life expectancy at birth | C7: Lower confidence limit | D7: L2 | E7: Upper confidence limit | F7: U2 | G7: England | H7: North west | I7: Significance | J7: National rank | K7: Local rank | L7: Difference from male rate (Y) | O7: England
A8: England | B8: 83.19602966 | C8: 83.16960144 | D8: =B8-C8 -> 0.02642822266 | E8: 83.22245789 | F8: =E8-B8 -> 0.02642822266 | G8: 83.19602966 | H8: 81.9 | I8: - | J8: - | K8: - | L8: =B8-B52 -> 3.650154114 | O8: =$B$8 -> 83.19602966
A9: North West | B9: 81.9 | C9: 81.8 | D9: =B9-C9 -> 0.1 | E9: 81.9 | F9: =E9-B9 -> 0 | G9: 83.19602966 | H9: 81.9 | I9: Significantly below England value | J9: 8/9 | K9: - | L9: =B9-B53 -> 3.8 | O9: =$B$8 -> 83.19602966 | P9: =IF($C$8>E9,"Significantly below England value",IF($E$8<C9,"Significantly above England value","No significant difference from England value")) -> Significantly below England value
A10: Lancashire county | B10: 82.1 | C10: 81.9 | D10: 0.2 | E10: 82.3 | F10: 0.2 | G10: 83.19602966 | H10: 81.9 | I10: Significantly below England value | J10: 28/33 | K10: - | L10: 3.6 | O10: 83.19602966 | P10: =IF($C$8>E10,"Significantly below England value",IF($E$8<C10,"Significantly above England value","No significant difference from England value")) -> Significantly below England value
A11: Burnley | B11: 80.1 | C11: 79.4 | D11: 0.7 | E11: 80.8 | F11: 0.7 | G11: 83.19602966 | H11: 81.9 | I11: Significantly below England value | J11: 321/324 | K11: =RANK(B11,$B$11:$B$22) & "/" & COUNTA($B$11:$B$22) -> 12/12 | L11: 4 | O11: 83.19602966 | P11: Significantly below England value
A12: Chorley | B12: 82.4 | C12: 81.8 | D12: 0.6 | E12: 82.9 | F12: 0.5 | G12: 83.19602966 | H12: 81.9 | I12: Significantly below England value | J12: 249/324 | K12: =RANK(B12,$B$11:$B$22) & "/" & COUNTA($B$11:$B$22) -> 5/12 | L12: 3.4 | O12: 83.19602966 | P12: Significantly below England value
A13: Fylde | B13: 82.6 | C13: 81.9 | D13: 0.7 | E13: 83.3 | F13: 0.7 | G13: 83.19602966 | H13: 81.9 | I13: No significant difference from England value | J13: 234/324 | K13: 4/12 | L13: 2.9 | O13: 83.19602966 | P13: No significant difference from England value
A14: Hyndburn | B14: 81.1 | C14: 80.4 | D14: 0.7 | E14: 81.8 | F14: 0.7 | G14: 83.19602966 | H14: 81.9 | I14: Significantly below England value | J14: 308/324 | K14: 11/12 | L14: 4.6 | O14: 83.19602966 | P14: Significantly below England value
A15: Lancaster | B15: 81.9 | C15: 81.4 | D15: 0.5 | E15: 82.4 | F15: 0.5 | G15: 83.19602966 | H15: 81.9 | I15: Significantly below England value | J15: 281/324 | K15: 8/12 | L15: 3.8 | O15: 83.19602966 | P15: Significantly below England value
A16: Pendle | B16: 81.9 | C16: 81.2 | D16: 0.7 | E16: 82.5 | F16: 0.6 | G16: 83.19602966 | H16: 81.9 | I16: Significantly below England value | J16: 281/324 | K16: 8/12 | L16: 4.1 | O16: 83.19602966 | P16: Significantly below England value
A17: Preston | B17: 81.3 | C17: 80.8 | D17: 0.5 | E17: 81.9 | F17: 0.6 | G17: 83.19602966 | H17: 81.9 | I17: Significantly below England value | J17: 303/324 | K17: 10/12 | L17: 3.9 | O17: 83.19602966 | P17: Significantly below England value
A18: Ribble Valley | B18: 83.2 | C18: 82.3 | D18: 0.9 | E18: 84.2 | F18: 1 | G18: 83.19602966 | H18: 81.9 | I18: No significant difference from England value | J18: 188/324 | K18: 2/12 | L18: 2 | O18: 83.19602966 | P18: No significant difference from England value
A19: Rossendale | B19: 82.4 | C19: 81.8 | D19: 0.6 | E19: 83.1 | F19: 0.7 | G19: 83.19602966 | H19: 81.9 | I19: Significantly below England value | J19: 249/324 | K19: 5/12 | L19: 4.7 | O19: 83.19602966 | P19: Significantly below England value
A20: South Ribble | B20: 83.3 | C20: 82.8 | D20: 0.5 | E20: 83.9 | F20: 0.6 | G20: 83.19602966 | H20: 81.9 | I20: No significant difference from England value | J20: 174/324 | K20: 1/12 | L20: 3.1 | O20: 83.19602966 | P20: No significant difference from England value
A21: West Lancashire | B21: 82.8 | C21: 82.2 | D21: 0.6 | E21: 83.3 | F21: 0.5 | G21: 83.19602966 | H21: 81.9 | I21: No significant difference from England value | J21: 222/324 | K21: 3/12 | L21: 3.2 | O21: 83.19602966 | P21: No significant difference from England value
A22: Wyre | B22: 82.2 | C22: 81.6 | D22: 0.6 | E22: 82.8 | F22: 0.6 | G22: 83.19602966 | H22: 81.9 | I22: Significantly below England value | J22: 262/324 | K22: 7/12 | L22: 3.5 | O22: 83.19602966 | P22: Significantly below England value
A48: Male life expectancy at birth
A51: Area | B51: Life expectancy at birth | C51: Lower confidence limit | D51: L2 | E51: Upper confidence limit | F51: U2 | G51: England | H51: North west | I51: Significance | J51: National rank | K51: Local rank | L51: Difference from female rate (Y) | O51: England
A52: England | B52: 79.54587555 | C52: 79.5173111 | D52: 0.02856445312 | E52: 79.57444 | F52: 0.02856445312 | G52: 79.54587555 | H52: 78.1 | I52: - | J52: - | K52: - | L52: =B52-B8 -> -3.650154114 | O52: =$B$52 -> 79.54587555
A53: North West | B53: 78.1 | C53: 78 | D53: =B53-C53 -> 0.1 | E53: 78.2 | F53: =E53-B53 -> 0.1 | G53: 79.54587555 | H53: 78.1 | I53: Significantly below England value | J53: 8/9 | K53: - | L53: =B53-B9 -> -3.8 | O53: =$B$52 -> 79.54587555 | P53: =IF($C$52>E53,"Significantly below England value",IF($E$52<C53,"Significantly above England value","No significant difference from England value")) -> Significantly below England value
A54: Lancashire county | B54: 78.5 | C54: 78.3 | D54: 0.2 | E54: 78.7 | F54: 0.2 | G54: 79.54587555 | H54: 78.1 | I54: Significantly below England value | J54: 27/33 | K54: - | L54: -3.6 | O54: 79.54587555 | P54: =IF($C$52>E54,"Significantly below England value",IF($E$52<C54,"Significantly above England value","No significant difference from England value")) -> Significantly below England value
A55: Burnley | B55: 76.1 | C55: 75.4 | D55: 0.7 | E55: 76.9 | F55: 0.8 | G55: 79.54587555 | H55: 78.1 | I55: Significantly below England value | J55: 322/324 | K55: =RANK(B55,$B$55:$B$66) & "/" & COUNTA($B$55:$B$66) -> 12/12 | L55: -4 | O55: 79.54587555 | P55: Significantly below England value
A56: Chorley | B56: 79 | C56: 78.4 | D56: 0.6 | E56: 79.6 | F56: 0.6 | G56: 79.54587555 | H56: 78.1 | I56: No significant difference from England value | J56: 218/324 | K56: =RANK(B56,$B$55:$B$66) & "/" & COUNTA($B$55:$B$66) -> 5/12 | L56: -3.4 | O56: 79.54587555 | P56: No significant difference from England value
A57: Fylde | B57: 79.7 | C57: 78.9 | D57: 0.8 | E57: 80.4 | F57: 0.7 | G57: 79.54587555 | H57: 78.1 | I57: No significant difference from England value | J57: 174/324 | K57: 3/12 | L57: -2.9 | O57: 79.54587555 | P57: No significant difference from England value
A58: Hyndburn | B58: 76.5 | C58: 75.8 | D58: 0.7 | E58: 77.3 | F58: 0.8 | G58: 79.54587555 | H58: 78.1 | I58: Significantly below England value | J58: 319/324 | K58: 11/12 | L58: -4.6 | O58: 79.54587555 | P58: Significantly below England value
A59: Lancaster | B59: 78.1 | C59: 77.6 | D59: 0.5 | E59: 78.7 | F59: 0.6 | G59: 79.54587555 | H59: 78.1 | I59: Significantly below England value | J59: 273/324 | K59: 7/12 | L59: -3.8 | O59: 79.54587555 | P59: Significantly below England value
A60: Pendle | B60: 77.8 | C60: 77 | D60: 0.8 | E60: 78.6 | F60: 0.8 | G60: 79.54587555 | H60: 78.1 | I60: Significantly below England value | J60: 289/324 | K60: 8/12 | L60: -4.1 | O60: 79.54587555 | P60: Significantly below England value
A61: Preston | B61: 77.4 | C61: 76.8 | D61: 0.6 | E61: 78 | F61: 0.6 | G61: 79.54587555 | H61: 78.1 | I61: Significantly below England value | J61: 301/324 | K61: 10/12 | L61: -3.9 | O61: 79.54587555 | P61: Significantly below England value
A62: Ribble Valley | B62: 81.2 | C62: 80.5 | D62: 0.7 | E62: 82 | F62: 0.8 | G62: 79.54587555 | H62: 78.1 | I62: Significantly above England value | J62: 65/324 | K62: 1/12 | L62: -2 | O62: 79.54587555 | P62: Significantly above England value
A63: Rossendale | B63: 77.7 | C63: 76.9 | D63: 0.8 | E63: 78.5 | F63: 0.8 | G63: 79.54587555 | H63: 78.1 | I63: Significantly below England value | J63: 292/324 | K63: 9/12 | L63: -4.7 | O63: 79.54587555 | P63: Significantly below England value
A64: South Ribble | B64: 80.2 | C64: 79.6 | D64: 0.6 | E64: 80.9 | F64: 0.7 | G64: 79.54587555 | H64: 78.1 | I64: Significantly above England value | J64: 134/324 | K64: 2/12 | L64: -3.1 | O64: 79.54587555 | P64: Significantly above England value
A65: West Lancashire | B65: 79.6 | C65: 79 | D65: 0.6 | E65: 80.2 | F65: 0.6 | G65: 79.54587555 | H65: 78.1 | I65: No significant difference from England value | J65: 185/324 | K65: 4/12 | L65: -3.2 | O65: 79.54587555 | P65: No significant difference from England value
A66: Wyre | B66: 78.7 | C66: 78.1 | D66: 0.6 | E66: 79.4 | F66: 0.7 | G66: 79.54587555 | H66: 78.1 | I66: Significantly below England value | J66: 237/324 | K66: 6/12 | L66: -3.5 | O66: 79.54587555 | P66: Significantly below England value

Sheet Lancashire district LE at 65
A1: District level estimated life expectancy at birth 2012-2014
A4: Female life expectancy at 65
A7: Area | B7: Life expectancy at 65 | C7: Lower confidence limit | D7: L2 | E7: Upper confidence limit | F7: U2 | G7: England | H7: North west | I7: Significance | J7: National rank | K7: Local rank | L7: Difference from male rate (Y)
A8: England | B8: 21.18774223 | C8: 21.16993523 | D8: 0.01780700684 | E8: 21.20554924 | F8: 0.01780700684 | G8: 21.18774223 | H8: 20.3 | I8: - | J8: - | K8: - | L8: =B8-B51 -> 2.417079926
A9: North West | B9: 20.3 | C9: 20.2 | D9: 0.1 | E9: 20.3 | F9: 0 | G9: 21.18774223 | H9: 20.3 | I9: Significantly below England value | J9: 8/9 | K9: - | L9: 2.3 | N9: =IF($C$8>E9,"Significantly below England value",IF($E$8<C9,"Significantly above England value","No significant difference from England value")) -> Significantly below England value
A10: Lancashire | B10: 20.4 | C10: 20.3 | D10: 0.1 | E10: 20.5 | F10: 0.1 | G10: 21.18774223 | H10: 20.3 | I10: Significantly below England value | J10: 28/33 | K10: - | L10: 2.2 | N10: =IF($C$8>E10,"Significantly below England value",IF($E$8<C10,"Significantly above England value","No significant difference from England value")) -> Significantly below England value
A11: Burnley | B11: 19 | C11: 18.6 | D11: 0.4 | E11: 19.4 | F11: 0.4 | G11: 21.18774223 | H11: 20.3 | I11: Significantly below England value | J11: 321/324 | K11: =RANK(B11,$B$11:$B$22) & "/" & COUNTA($B$11:$B$22) -> 12/12 | L11: 2 | N11: Significantly below England value
A12: Chorley | B12: 20.4 | C12: 20 | D12: 0.4 | E12: 20.7 | F12: 0.3 | G12: 21.18774223 | H12: 20.3 | I12: Significantly below England value | J12: 271/324 | K12: 7/12 | L12: 2.1 | N12: Significantly below England value
A13: Fylde | B13: 20.7 | C13: 20.3 | D13: 0.4 | E13: 21.1 | F13: 0.4 | G13: 21.18774223 | H13: 20.3 | I13: Significantly below England value | J13: 238/324 | K13: 4/12 | L13: 2 | N13: Significantly below England value
A14: Hyndburn | B14: 19.7 | C14: 19.2 | D14: 0.5 | E14: 20.1 | F14: 0.4 | G14: 21.18774223 | H14: 20.3 | I14: Significantly below England value | J14: 307/324 | K14: 11/12 | L14: 2.5 | N14: Significantly below England value
A15: Lancaster | B15: 20.2 | C15: 19.9 | D15: 0.3 | E15: 20.5 | F15: 0.3 | G15: 21.18774223 | H15: 20.3 | I15: Significantly below England value | J15: 284/324 | K15: 8/12 | L15: 2.1 | N15: Significantly below England value
A16: Pendle | B16: 20.5 | C16: 20.1 | D16: 0.4 | E16: 20.9 | F16: 0.4 | G16: 21.18774223 | H16: 20.3 | I16: Significantly below England value | J16: 256/324 | K16: 6/12 | L16: 2.3 | N16: Significantly below England value
A17: Preston | B17: 19.9 | C17: 19.5 | D17: 0.4 | E17: 20.3 | F17: 0.4 | G17: 21.18774223 | H17: 20.3 | I17: Significantly below England value | J17: 303/324 | K17: 10/12 | L17: 2.5 | N17: Significantly below England value
A18: Ribble Valley | B18: 21.7 | C18: 21.2 | D18: 0.5 | E18: 22.1 | F18: 0.4 | G18: 21.18774223 | H18: 20.3 | I18: No significant difference from England value | J18: 118/324 | K18: 1/12 | L18: 2.5 | N18: No significant difference from England value
A19: Rossendale | B19: 20 | C19: 19.5 | D19: 0.5 | E19: 20.5 | F19: 0.5 | G19: 21.18774223 | H19: 20.3 | I19: Significantly below England value | J19: 298/324 | K19: 9/12 | L19: 2.4 | N19: Significantly below England value
A20: South Ribble | B20: 21.3 | C20: 20.9 | D20: 0.4 | E20: 21.6 | F20: 0.3 | G20: 21.18774223 | H20: 20.3 | I20: No significant difference from England value | J20: 164/324 | K20: 2/12 | L20: 1.8 | N20: No significant difference from England value
A21: West Lancashire | B21: 20.7 | C21: 20.4 | D21: 0.3 | E21: 21.1 | F21: 0.4 | G21: 21.18774223 | H21: 20.3 | I21: Significantly below England value | J21: 238/324 | K21: 4/12 | L21: 2.3 | N21: Significantly below England value
A22: Wyre | B22: 21 | C22: 20.7 | D22: 0.3 | E22: 21.3 | F22: 0.3 | G22: 21.18774223 | H22: 20.3 | I22: No significant difference from England value | J22: 201/324 | K22: 3/12 | L22: 2.6 | N22: No significant difference from England value
A47: Male life expectancy at 65
A50: Area | B50: Life expectancy at 65 | C50: Lower confidence limit | D50: L2 | E50: Upper confidence limit | F50: U2 | G50: England | H50: North west | I50: Significance | J50: National rank | K50: Local rank | L50: Difference from female rate (Y)
A51: England | B51: 18.77066231 | C51: 18.75183487 | D51: =B51-C51 -> 0.01882743835 | E51: 18.78948975 | F51: =E51-B51 -> 0.01882743835 | G51: 18.77066231 | H51: 18 | I51: - | J51: - | K51: - | L51: =B51-B8 -> -2.417079926
A52: North West | B52: 18 | C52: 17.9 | D52: =B52-C52 -> 0.1 | E52: 18 | F52: =E52-B52 -> 0 | G52: 18.77066231 | H52: 18 | I52: Significantly below England value | J52: 8/9 | K52: - | L52: -2.3 | N52: =IF($C$51>E52,"Significantly below England value",IF($E$51<C52,"Significantly above England value","No significant difference from England value")) -> Significantly below England value
A53: Lancashire | B53: 18.2 | C53: 18.1 | D53: 0.1 | E53: 18.3 | F53: 0.1 | G53: 18.77066231 | H53: 18 | I53: Significantly below England value | J53: 27/33 | K53: - | L53: -2.2 | N53: =IF($C$51>E53,"Significantly below England value",IF($E$51<C53,"Significantly above England value","No significant difference from England value")) -> Significantly below England value
A54: Burnley | B54: 17 | C54: 16.5 | D54: 0.5 | E54: 17.4 | F54: 0.4 | G54: 18.77066231 | H54: 18 | I54: Significantly below England value | J54: 317/324 | K54: =RANK(B54,$B$54:$B$65) & "/" & COUNTA($B$54:$B$65) -> 12/12 | L54: -2 | N54: Significantly below England value
A55: Chorley | B55: 18.3 | C55: 18 | D55: 0.3 | E55: 18.7 | F55: 0.4 | G55: 18.77066231 | H55: 18 | I55: Significantly below England value | J55: 230/324 | K55: 6/12 | L55: -2.1 | N55: Significantly below England value
A56: Fylde | B56: 18.7 | C56: 18.3 | D56: 0.4 | E56: 19.1 | F56: 0.4 | G56: 18.77066231 | H56: 18 | I56: No significant difference from England value | J56: 187/324 | K56: 3/12 | L56: -2 | N56: No significant difference from England value
A57: Hyndburn | B57: 17.2 | C57: 16.8 | D57: 0.4 | E57: 17.7 | F57: 0.5 | G57: 18.77066231 | H57: 18 | I57: Significantly below England value | J57: 311/324 | K57: 11/12 | L57: -2.5 | N57: Significantly below England value
A58: Lancaster | B58: 18.1 | C58: 17.8 | D58: 0.3 | E58: 18.5 | F58: 0.4 | G58: 18.77066231 | H58: 18 | I58: Significantly below England value | J58: 251/324 | K58: 8/12 | L58: -2.1 | N58: Significantly below England value
A59: Pendle | B59: 18.2 | C59: 17.8 | D59: 0.4 | E59: 18.7 | F59: 0.5 | G59: 18.77066231 | H59: 18 | I59: Significantly below England value | J59: 237/324 | K59: 7/12 | L59: -2.3 | N59: Significantly below England value
A60: Preston | B60: 17.4 | C60: 17 | D60: 0.4 | E60: 17.8 | F60: 0.4 | G60: 18.77066231 | H60: 18 | I60: Significantly below England value | J60: 304/324 | K60: 10/12 | L60: -2.5 | N60: Significantly below England value
A61: Ribble Valley | B61: 19.2 | C61: 18.7 | D61: 0.5 | E61: 19.7 | F61: 0.5 | G61: 18.77066231 | H61: 18 | I61: No significant difference from England value | J61: 131/324 | K61: 2/12 | L61: -2.5 | N61: No significant difference from England value
A62: Rossendale | B62: 17.6 | C62: 17.1 | D62: 0.5 | E62: 18.1 | F62: 0.5 | G62: 18.77066231 | H62: 18 | I62: Significantly below England value | J62: 295/324 | K62: 9/12 | L62: -2.4 | N62: Significantly below England value
A63: South Ribble | B63: 19.5 | C63: 19.1 | D63: 0.4 | E63: 19.9 | F63: 0.4 | G63: 18.77066231 | H63: 18 | I63: Significantly above England value | J63: 87/324 | K63: 1/12 | L63: -1.8 | N63: Significantly above England value
A64: West Lancashire | B64: 18.4 | C64: 18 | D64: 0.4 | E64: 18.7 | F64: 0.3 | G64: 18.77066231 | H64: 18 | I64: Significantly below England value | J64: 213/324 | K64: 4/12 | L64: -2.3 | N64: Significantly below England value
A65: Wyre | B65: 18.4 | C65: 18.1 | D65: 0.3 | E65: 18.8 | F65: 0.4 | G65: 18.77066231 | H65: 18 | I65: No significant difference from England value | J65: 213/324 | K65: 4/12 | L65: -2.6 | N65: No significant difference from England value

Sheet LE Estimates by MSOA
A1: MSOA level estimated life expectancy at birth 2009-2013
B5: << Select district
B6: << Select gender
A8: England | B8: Estimated LE | C8: Lower CI | D8: Upper CI
A9: Female | B9: 82.97178 | C9: 82.95091 | D9: 82.99266
A10: Male | B10: 79.13487 | C10: 79.11233 | D10: 79.15741
A11: =B14 -> Male
A13: LA | B13: Preston
A14: Gender | B14: Male
A17: MSOA Names | B17: LE | C17: Lower CI | D17: Upper CI | E17: Significance
A18: Preston 001 | B18: 80.46473 | C18: 78.66832 | D18: 82.26113 | E18: NoDiff
A19: Preston 002 | B19: 82.56432 | C19: 80.31964 | D19: 84.80901 | E19: Better
A20: Preston 003 | B20: 82.33074 | C20: 80.82324 | D20: 83.83824 | E20: Better
A21: Preston 004 | B21: 76.90246 | C21: 75.0613 | D21: 78.74363 | E21: Worse
A22: Preston 005 | B22: 75.31601 | C22: 73.44685 | D22: 77.18518 | E22: Worse
A23: Preston 006 | B23: 79.93869 | C23: 78.5142 | D23: 81.36319 | E23: NoDiff
A24: Preston 007 | B24: 78.50944 | C24: 76.74765 | D24: 80.27123 | E24: NoDiff
A25: Preston 008 | B25: 80.03424 | C25: 78.34251 | D25: 81.72598 | E25: NoDiff
A26: Preston 009 | B26: 72.94635 | C26: 71.2326 | D26: 74.66009 | E26: Worse
A27: Preston 010 | B27: 76.50813 | C27: 74.16945 | D27: 78.8468 | E27: Worse
A28: Preston 011 | B28: 74.70148 | C28: 72.50726 | D28: 76.8957 | E28: Worse
A29: Preston 012 | B29: 77.33833 | C29: 75.50841 | D29: 79.16825 | E29: Worse
A30: Preston 013 | B30: 76.41859 | C30: 74.63432 | D30: 78.20287 | E30: Worse
A31: Preston 014 | B31: 72.91196 | C31: 70.90236 | D31: 74.92155 | E31: Worse
A32: Preston 015 | B32: 76.63216 | C32: 73.92291 | D32: 79.34141 | E32: Worse
A33: Preston 016 | B33: 77.05119 | C33: 75.00265 | D33: 79.09973 | E33: Worse
A34: Preston 017 | B34: 74.00732 | C34: 71.89942 | D34: 76.11522 | E34: Worse
A38: =A39 -> Preston Male MSOA Life expectancy estimates 2009-13
A39: =B13 & " " & B14 & " MSOA Life expectancy estimates 2009-13" -> Preston Male MSOA Life expectancy estimates 2009-13
A41: MSOA Name | B41: Estimated LE | C41: Lower CI | D41: Upper CI | E41: Significance | F41: IMD Quintile | H41: L2 | I41: U2 | J41: England | K41: Better | L41: NoDiff | M41: Worse
A42: England | B42: =SUM(IF($A$9:$A$10=$A11,IF($B$8:$D$8=$B41,$B$9:$D$10))) -> 79.13487 | C42: =SUM(IF($A$9:$A$10=$A11,IF($B$8:$D$8=$C41,$B$9:$D$10))) -> 79.11233 | D42: =SUM(IF($A$9:$A$10=$A11,IF($B$8:$D$8=$D41,$B$9:$D$10))) -> 79.15741 | E42: - | F42: - | H42: =B42-C42 -> 0.02254 | I42: =D42-B42 -> 0.02254 | J42: =IF(B42="", " ",$B$42) -> 79.13487
A43: Preston 001 | B43: 80.46473 | C43: 78.66832 | D43: 82.26113 | E43: NoDiff | F43: =IF(ISNA(VLOOKUP(A43,'MSOA figures'!$B$1:$L$309,11,FALSE)),"",VLOOKUP(A43,'MSOA figures'!$B$1:$L$309,11,FALSE)) -> 4 | H43: 1.79641 | I43: 1.7964 | K43: =IF($E43=$K$41,$B43,#N/A) ->  | L43: =IF($E43=$L$41,$B43,#N/A) -> 80.46473 | M43: =IF($E43=$M$41,$B43,#N/A) -> 
A44: Preston 002 | B44: 82.56432 | C44: 80.31964 | D44: 84.80901 | E44: Better | F44: =IF(ISNA(VLOOKUP(A44,'MSOA figures'!$B$1:$L$309,11,FALSE)),"",VLOOKUP(A44,'MSOA figures'!$B$1:$L$309,11,FALSE)) -> 5 | H44: 2.24468 | I44: 2.24469 | K44: =IF(E44=$K$41,B44,#N/A) -> 82.56432 | L44: =IF($E44=$L$41,$B44,#N/A) ->  | M44: =IF($E44=$M$41,$B44,#N/A) -> 
A45: Preston 003 | B45: 82.33074 | C45: 80.82324 | D45: 83.83824 | E45: Better | F45: =IF(ISNA(VLOOKUP(A45,'MSOA figures'!$B$1:$L$309,11,FALSE)),"",VLOOKUP(A45,'MSOA figures'!$B$1:$L$309,11,FALSE)) -> 5 | H45: 1.5075 | I45: 1.5075 | K45: 82.33074
A46: Preston 004 | B46: 76.90246 | C46: 75.0613 | D46: 78.74363 | E46: Worse | F46: =IF(ISNA(VLOOKUP(A46,'MSOA figures'!$B$1:$L$309,11,FALSE)),"",VLOOKUP(A46,'MSOA figures'!$B$1:$L$309,11,FALSE)) -> 5 | H46: 1.84116 | I46: 1.84117 | M46: 76.90246
A47: Preston 005 | B47: 75.31601 | C47: 73.44685 | D47: 77.18518 | E47: Worse | F47: =IF(ISNA(VLOOKUP(A47,'MSOA figures'!$B$1:$L$309,11,FALSE)),"",VLOOKUP(A47,'MSOA figures'!$B$1:$L$309,11,FALSE)) -> 1 | H47: 1.86916 | I47: 1.86917 | M47: 75.31601
A48: Preston 006 | B48: 79.93869 | C48: 78.5142 | D48: 81.36319 | E48: NoDiff | F48: =IF(ISNA(VLOOKUP(A48,'MSOA figures'!$B$1:$L$309,11,FALSE)),"",VLOOKUP(A48,'MSOA figures'!$B$1:$L$309,11,FALSE)) -> 4 | H48: 1.42449 | I48: 1.4245 | L48: 79.93869
A49: Preston 007 | B49: 78.50944 | C49: 76.74765 | D49: 80.27123 | E49: NoDiff | F49: =IF(ISNA(VLOOKUP(A49,'MSOA figures'!$B$1:$L$309,11,FALSE)),"",VLOOKUP(A49,'MSOA figures'!$B$1:$L$309,11,FALSE)) -> 1 | H49: 1.76179 | I49: 1.76179 | L49: 78.50944
A50: Preston 008 | B50: 80.03424 | C50: 78.34251 | D50: 81.72598 | E50: NoDiff | F50: =IF(ISNA(VLOOKUP(A50,'MSOA figures'!$B$1:$L$309,11,FALSE)),"",VLOOKUP(A50,'MSOA figures'!$B$1:$L$309,11,FALSE)) -> 4 | H50: 1.69173 | I50: 1.69174 | L50: 80.03424
A51: Preston 009 | B51: 72.94635 | C51: 71.2326 | D51: 74.66009 | E51: Worse | F51: =IF(ISNA(VLOOKUP(A51,'MSOA figures'!$B$1:$L$309,11,FALSE)),"",VLOOKUP(A51,'MSOA figures'!$B$1:$L$309,11,FALSE)) -> 1 | H51: 1.71375 | I51: 1.71374 | M51: 72.94635
A52: Preston 010 | B52: 76.50813 | C52: 74.16945 | D52: 78.8468 | E52: Worse | F52: =IF(ISNA(VLOOKUP(A52,'MSOA figures'!$B$1:$L$309,11,FALSE)),"",VLOOKUP(A52,'MSOA figures'!$B$1:$L$309,11,FALSE)) -> 4 | H52: 2.33868 | I52: 2.33867 | M52: 76.50813
A53: Preston 011 | B53: 74.70148 | C53: 72.50726 | D53: 76.8957 | E53: Worse | F53: =IF(ISNA(VLOOKUP(A53,'MSOA figures'!$B$1:$L$309,11,FALSE)),"",VLOOKUP(A53,'MSOA figures'!$B$1:$L$309,11,FALSE)) -> 1 | H53: 2.19422 | I53: 2.19422 | M53: 74.70148
A54: Preston 012 | B54: 77.33833 | C54: 75.50841 | D54: 79.16825 | E54: Worse | F54: =IF(ISNA(VLOOKUP(A54,'MSOA figures'!$B$1:$L$309,11,FALSE)),"",VLOOKUP(A54,'MSOA figures'!$B$1:$L$309,11,FALSE)) -> 2 | H54: 1.82992 | I54: 1.82992 | M54: 77.33833
A55: Preston 013 | B55: 76.41859 | C55: 74.63432 | D55: 78.20287 | E55: Worse | F55: =IF(ISNA(VLOOKUP(A55,'MSOA figures'!$B$1:$L$309,11,FALSE)),"",VLOOKUP(A55,'MSOA figures'!$B$1:$L$309,11,FALSE)) -> 2 | H55: 1.78427 | I55: 1.78428 | M55: 76.41859
A56: Preston 014 | B56: 72.91196 | C56: 70.90236 | D56: 74.92155 | E56: Worse | F56: =IF(ISNA(VLOOKUP(A56,'MSOA figures'!$B$1:$L$309,11,FALSE)),"",VLOOKUP(A56,'MSOA figures'!$B$1:$L$309,11,FALSE)) -> 1 | H56: 2.0096 | I56: 2.00959 | M56: 72.91196
A57: Preston 015 | B57: 76.63216 | C57: 73.92291 | D57: 79.34141 | E57: Worse | F57: =IF(ISNA(VLOOKUP(A57,'MSOA figures'!$B$1:$L$309,11,FALSE)),"",VLOOKUP(A57,'MSOA figures'!$B$1:$L$309,11,FALSE)) -> 1 | H57: 2.70925 | I57: 2.70925 | M57: 76.63216
A58: Preston 016 | B58: 77.05119 | C58: 75.00265 | D58: 79.09973 | E58: Worse | F58: =IF(ISNA(VLOOKUP(A58,'MSOA figures'!$B$1:$L$309,11,FALSE)),"",VLOOKUP(A58,'MSOA figures'!$B$1:$L$309,11,FALSE)) -> 1 | H58: 2.04854 | I58: 2.04854 | M58: 77.05119
A59: Preston 017 | B59: 74.00732 | C59: 71.89942 | D59: 76.11522 | E59: Worse | F59: =IF(ISNA(VLOOKUP(A59,'MSOA figures'!$B$1:$L$309,11,FALSE)),"",VLOOKUP(A59,'MSOA figures'!$B$1:$L$309,11,FALSE)) -> 1 | H59: 2.1079 | I59: 2.1079 | M59: 74.00732
F60: =IF(ISNA(VLOOKUP(A60,'MSOA figures'!$B$1:$L$309,11,FALSE)),"",VLOOKUP(A60,'MSOA figures'!$B$1:$L$309,11,FALSE)) ->  | H60: 0 | I60: 0
A64: MSOA life expectancy maps are available on Public Health England : Local Tool - www.localhealth.org.uk

Sheet Healthy Life Expectancy
A1: Upper tier local authority estimated healthy life expectancy at birth 2012-2014
A5: The statistical bulletin includes notes on the definition of health expectancies and details of the data and methods used in calculating these estimates. Briefly, HLE estimates were calculated by combining the prevalence of "Good" general health across the upper tier local authorities and English regions with mortality data and mid-year population estimates (MYPE) in the period 2012 to 2014. The health prevalence data used in calculating HLE estimates for the various geographies in England were derived from the Annual Population Survey (APS).
A10: The statistical bulletin which accompanies the publication of these estimates can be found on the Office for National Statistics website at:
A11: http://www.ons.gov.uk/peoplepopulationandcommunity/healthandsocialcare/healthandlifeexpectancies
A13: Male
A15: Local authority code | B15: Local authority name | C15: English region | D15: LE (years) | E15: HLE (years) | F15: Significance | G15: Lower 95% confidence interval | H15: Upper 95% confidence interval | I15: Proportion of life spent in "Good" health (%) | J15: LE rank out of 150 | K15: HLE rank out of 150 | L15: Year | M15: England | N15: Lower 95% confidence interval | O15: Upper 95% confidence interval
A16: E10000017 | B16: Lancashire | C16: North West | D16: 78.48513 | E16: 61.13922 | F16: Significantly lower than England | G16: 59.87764 | H16: 62.40079 | I16: 77.8991 | J16: 98 | K16: 98 | L16: 2012-14 | M16: 63.4 | N16: 63.25775 | O16: 63.59554 | P16: =IF(N16>H16,"Significantly below England value",IF(O16<G16,"Significantly above England value","No significant difference from England value")) -> Significantly below England value
A17: E10000017 | B17: Lancashire | C17: North West | D17: 78.2602 | E17: 61.32539 | F17: Significantly lower than England | G17: 60.11039 | H17: 62.54039 | I17: 78.3609 | J17: 98 | K17: 95 | L17: 2011-13 | M17: 63.27127 | N17: 63.10211 | O17: 63.44042 | P17: =IF(N17>H17,"Significantly below England value",IF(O17<G17,"Significantly above England value","No significant difference from England value")) -> Significantly below England value
A18: E10000017 | B18: Lancashire | C18: North West | D18: 78.1558 | E18: 62.69999 | F18: - | G18: 61.53749 | H18: 63.86249 | I18: 80.22436 | J18: 100 | K18: 77 | L18: 2010-12 | M18: 63.36313 | N18: 63.20048 | O18: 63.52578 | P18: No significant difference from England value
A19: E10000017 | B19: Lancashire | C19: North West | D19: 77.81691 | E19: 62.81861 | F19: - | G19: 61.65836 | H19: 63.97885 | I19: 80.72616 | J19: 99 | K19: 71 | L19: 2009-11 | M19: 63.22371 | N19: 63.06649 | O19: 63.38094 | P19: No significant difference from England value
B22: 2009-11 | C22: 2010-12 | D22: 2011-13 | E22: 2012-14
A23: England | B23: 63.2 | C23: 63.4 | D23: 63.3 | E23: 63.4
A24: Lancashire | B24: 62.8 | C24: 62.7 | D24: 61.3 | E24: 61.1
A48: Female
A50: Local authority code | B50: Local authority name | C50: English region | D50: LE (years) | E50: HLE (years) | F50: Significance | G50: Lower 95% confidence interval | H50: Upper 95% confidence interval | I50: Proportion of life spent in "Good" health (%) | J50: LE rank out of 150 | K50: HLE rank out of 150 | L50: Year | M50: England | N50: Lower 95% confidence interval | O50: Upper 95% confidence interval
A51: E10000017 | B51: Lancashire | C51: North West | D51: 82.12862 | E51: 63.0627 | F51: - | G51: 61.78205 | H51: 64.34334 | I51: 76.78529 | J51: 115 | K51: 76 | L51: 2012-14 | M51: 64.00369 | N51: 63.81894 | O51: 64.18844 | P51: =IF(N51>H51,"Significantly below England value",IF(O51<G51,"Significantly above England value","No significant difference from England value")) -> No significant difference from England value
A52: E10000017 | B52: Lancashire | C52: North West | D52: 81.97332 | E52: 62.40681 | F52: Significantly lower than England | G52: 61.1081 | H52: 63.70553 | I52: 76.13064 | J52: 116 | K52: 92 | L52: 2011-13 | M52: 63.94774 | N52: 63.7658 | O52: 64.12968 | P52: =IF(N52>H52,"Significantly below England value",IF(O52<G52,"Significantly above England value","No significant difference from England value")) -> Significantly below England value
A53: E10000017 | B53: Lancashire | C53: North West | D53: 81.979 | E53: 62.21863 | F53: Significantly lower than England | G53: 60.87717 | H53: 63.56008 | I53: 75.89581 | J53: 113 | K53: 92 | L53: 2010-12 | M53: 64.10122 | N53: 63.92479 | O53: 64.27764 | P53: Significantly below England value
A54: E10000017 | B54: Lancashire | C54: North West | D54: 81.75011 | E54: 63.2666 | F54: - | G54: 62.00677 | H54: 64.52642 | I54: 77.39023 | J54: 117 | K54: 74 | L54: 2009-11 | M54: 64.15111 | N54: 63.98161 | O54: 64.32061 | P54: No significant difference from England value
B57: 2009-11 | C57: 2010-12 | D57: 2011-13 | E57: 2012-14
A58: England | B58: =N54 -> 63.98161 | C58: =N53 -> 63.92479 | D58: =N52 -> 63.7658 | E58: =N51 -> 63.81894
A59: Lancashire | B59: =E54 -> 63.2666 | C59: =E53 -> 62.21863 | D59: =E52 -> 62.40681 | E59: =E51 -> 63.0627

Sheet LE v HLE
A1: Upper tier local authority estimated life expectancy Vs healthy life expectancy at birth 2012-2014
A5: The charts on this page show how life expectancy and health life expectancy at birth for the Lancashire county has changed 2009-11 to 2012-14. Showing that whilst male life expectancy has gradually increased, male healthy life expectancy has decreased. The figures for females are more positive in that they are showing an increase when compared to the past two publications.
A8: Males
C9: 2009-11 | D9: 2010-12 | E9: 2011-13 | F9: 2012-14
B10: Life expectancy | C10: 77.81691 | D10: 78.1558 | E10: 78.2602 | F10: 78.48513
B11: Healthy life expectancy | C11: 62.8 | D11: 62.7 | E11: 61.3 | F11: 61.1
A38: Females
C40: 2009-11 | D40: 2010-12 | E40: 2011-13 | F40: 2012-14
B41: Life expectancy | C41: 81.75011 | D41: 81.979 | E41: 81.97332 | F41: 82.12862
B42: Healthy life expectancy | C42: 63.2666 | D42: 62.21863 | E42: 62.40681 | F42: 63.0627

Sheet Lookups (hidden)
A5: Female
A6: Male
A10: Burnley
A11: Chorley
A12: Fylde
A13: Hyndburn
A14: Lancaster
A15: Pendle
A16: Preston
A17: Ribble Valley
A18: Rossendale
A19: South Ribble
A20: West Lancashire
A21: Wyre

Sheet MSOA figures (hidden)
A1: MSOA Codes | B1: MSOA Names | C1: LA | D1: Gender | E1: LE | F1: Significance | G1: Lower CI | H1: Upper CI | I1: IMD 2015 Scores | J1: National LE rank | K1: National % rank | L1: IMD Quintile|2015 (1 = most deprived, 5 = least)
A2: E02005245 | B2: Pendle 006 | C2: Pendle | D2: Male | E2: 84.30811 | F2: Better | G2: 82.37955 | H2: 86.23667 | I2: 12.20089759 | J2: 191 | K2: =PERCENTRANK($E$2:$E$155,E2) -> 1 | L2: 4
A3: E02005302 | B3: South Ribble 016 | C3: South Ribble | D3: Male | E3: 84.06248 | F3: Better | G3: 81.97035 | H3: 86.15461 | I3: 10.0842833 | J3: 239 | K3: 0.993 | L3: 4
A4: E02005296 | B4: South Ribble 010 | C4: South Ribble | D4: Male | E4: 83.40344 | F4: Better | G4: 81.23674 | H4: 85.57015 | I4: 6.323003433 | J4: 430 | K4: 0.986 | L4: 5
A5: E02005273 | B5: Ribble Valley 004 | C5: Ribble Valley | D5: Male | E5: 82.85281 | F5: Better | G5: 80.98072 | H5: 84.72489 | I5: 8.283385304 | J5: 648 | K5: 0.98 | L5: 5
A6: E02005288 | B6: South Ribble 002 | C6: South Ribble | D6: Male | E6: 82.68905 | F6: Better | G6: 80.52912 | H6: 84.84899 | I6: 11.00847095 | J6: 725 | K6: 0.973 | L6: 4
A7: E02005254 | B7: Preston 002 | C7: Preston | D7: Male | E7: 82.56432 | F7: Better | G7: 80.31964 | H7: 84.80901 | I7: 7.402556374 | J7: 790 | K7: 0.967 | L7: 5
A8: E02005277 | B8: Ribble Valley 008 | C8: Ribble Valley | D8: Male | E8: 82.47609 | F8: Better | G8: 81.34604 | H8: 83.60614 | I8: 5.675156155 | J8: 842 | K8: 0.96 | L8: 5
A9: E02005330 | B9: Wyre 012 | C9: Wyre | D9: Male | E9: 82.35833 | F9: Better | G9: 80.71704 | H9: 83.99962 | I9: 8.512078995 | J9: 909 | K9: 0.954 | L9: 5
A10: E02005184 | B10: Burnley 009 | C10: Burnley | D10: Male | E10: 82.33825 | F10: Better | G10: 80.2635 | H10: 84.413 | I10: 12.63106608 | J10: 919 | K10: 0.947 | L10: 4
A11: E02005255 | B11: Preston 003 | C11: Preston | D11: Male | E11: 82.33074 | F11: Better | G11: 80.82324 | H11: 83.83824 | I11: 7.018068896 | J11: 927 | K11: 0.941 | L11: 5
A12: E02005304 | B12: West Lancashire 001 | C12: West Lancashire | D12: Male | E12: 82.08322 | F12: Better | G12: 80.683 | H12: 83.48344 | I12: 8.347092058 | J12: 1092 | K12: 0.934 | L12: 5
A13: E02005290 | B13: South Ribble 004 | C13: South Ribble | D13: Male | E13: 82.00532 | F13: Better | G13: 80.14885 | H13: 83.86179 | I13: 7.818768585 | J13: 1143 | K13: 0.928 | L13: 5
A14: E02005332 | B14: Wyre 014 | C14: Wyre | D14: Male | E14: 82.00053 | F14: Better | G14: 80.03966 | H14: 83.9614 | I14: 8.28135197 | J14: 1149 | K14: 0.921 | L14: 5
A15: E02005289 | B15: South Ribble 003 | C15: South Ribble | D15: Male | E15: 81.86884 | F15: Better | G15: 79.96437 | H15: 83.77331 | I15: 4.990262441 | J15: 1230 | K15: 0.915 | L15: 5
A16: E02005222 | B16: Lancaster 002 | C16: Lancaster | D16: Male | E16: 81.85198 | F16: Better | G16: 79.98094 | H16: 83.72302 | I16: 13.82243902 | J16: 1248 | K16: 0.908 | L16: 4
A17: E02005210 | B17: Fylde 008 | C17: Fylde | D17: Male | E17: 81.77 | F17: Better | G17: 80.59845 | H17: 82.94156 | I17: 10.7980356 | J17: 1312 | K17: 0.901 | L17: 4
A18: E02005324 | B18: Wyre 006 | C18: Wyre | D18: Male | E18: 81.71035 | F18: Better | G18: 79.96836 | H18: 83.45233 | I18: 10.7893199 | J18: 1360 | K18: 0.895 | L18: 4
A19: E02005311 | B19: West Lancashire 008 | C19: West Lancashire | D19: Male | E19: 81.65727 | F19: Better | G19: 79.238 | H19: 84.07655 | I19: 12.21595239 | J19: 1401 | K19: 0.888 | L19: 4
A20: E02005312 | B20: West Lancashire 009 | C20: West Lancashire | D20: Male | E20: 81.56771 | F20: Better | G20: 78.79925 | H20: 84.33616 | I20: 16.25892116 | J20: 1474 | K20: 0.882 | L20: 3
A21: E02005195 | B21: Chorley 007 | C21: Chorley | D21: Male | E21: 81.38458 | F21: Better | G21: 79.69398 | H21: 83.07519 | I21: 11.66493635 | J21: 1619 | K21: 0.875 | L21: 4
A22: E02005241 | B22: Pendle 002 | C22: Pendle | D22: Male | E22: 81.20961 | F22: Better | G22: 78.81257 | H22: 83.60666 | I22: 21.3143984 | J22: 1762 | K22: 0.869 | L22: 3
A23: E02005199 | B23: Chorley 011 | C23: Chorley | D23: Male | E23: 81.1923 | F23: Better | G23: 79.10972 | H23: 83.27488 | I23: 7.435853655 | J23: 1773 | K23: 0.862 | L23: 5
A24: E02005297 | B24: South Ribble 011 | C24: South Ribble | D24: Male | E24: 81.06829 | F24: Better | G24: 79.40747 | H24: 82.72911 | I24: 6.59804826 | J24: 1869 | K24: 0.856 | L24: 5
A25: E02005274 | B25: Ribble Valley 005 | C25: Ribble Valley | D25: Male | E25: 80.954 | F25: Better | G25: 78.96026 | H25: 82.94775 | I25: 7.068874105 | J25: 1970 | K25: 0.849 | L25: 5
A26: E02005270 | B26: Ribble Valley 001 | C26: Ribble Valley | D26: Male | E26: 80.93659 | F26: Better | G26: 79.38009 | H26: 82.49309 | I26: 14.14894181 | J26: 1983 | K26: 0.843 | L26: 4
A27: E02005315 | B27: West Lancashire 012 | C27: West Lancashire | D27: Male | E27: 80.9337 | F27: Better | G27: 79.32405 | H27: 82.54335 | I27: 7.528416667 | J27: 1985 | K27: 0.836 | L27: 5
A28: E02005239 | B28: Lancaster 019 | C28: Lancaster | D28: Male | E28: 80.91763 | F28: Better | G28: 79.31444 | H28: 82.52083 | I28: 10.72278544 | J28: 1999 | K28: 0.83 | L28: 4
A29: E02005287 | B29: South Ribble 001 | C29: South Ribble | D29: Male | E29: 80.61992 | F29: NoDiff | G29: 78.40125 | H29: 82.83859 | I29: 4.033889033 | J29: 2287 | K29: 0.823 | L29: 5
A30: E02005206 | B30: Fylde 004 | C30: Fylde | D30: Male | E30: 80.55568 | F30: NoDiff | G30: 78.64233 | H30: 82.46902 | I30: 19.86699188 | J30: 2352 | K30: 0.816 | L30: 3
A31: E02005310 | B31: West Lancashire 007 | C31: West Lancashire | D31: Male | E31: 80.54634 | F31: NoDiff | G31: 78.35898 | H31: 82.73371 | I31: 12.52229932 | J31: 2361 | K31: 0.81 | L31: 4
A32: E02005328 | B32: Wyre 010 | C32: Wyre | D32: Male | E32: 80.47482 | F32: NoDiff | G32: 78.52232 | H32: 82.42732 | I32: 10.81609554 | J32: 2432 | K32: 0.803 | L32: 4
A33: E02005253 | B33: Preston 001 | C33: Preston | D33: Male | E33: 80.46473 | F33: NoDiff | G33: 78.66832 | H33: 82.26113 | I33: 12.96394735 | J33: 2442 | K33: 0.797 | L33: 4
A34: E02005221 | B34: Lancaster 001 | C34: Lancaster | D34: Male | E34: 80.46186 | F34: Better | G34: 78.9931 | H34: 81.93062 | I34: 13.84811208 | J34: 2444 | K34: 0.79 | L34: 4
A35: E02005223 | B35: Lancaster 003 | C35: Lancaster | D35: Male | E35: 80.45474 | F35: NoDiff | G35: 78.61232 | H35: 82.29717 | I35: 8.457987312 | J35: 2450 | K35: 0.784 | L35: 5
A36: E02005285 | B36: Rossendale 008 | C36: Rossendale | D36: Male | E36: 80.39508 | F36: NoDiff | G36: 78.89618 | H36: 81.89399 | I36: 11.26781672 | J36: 2520 | K36: 0.777 | L36: 4
A37: E02005247 | B37: Pendle 008 | C37: Pendle | D37: Male | E37: 80.33479 | F37: NoDiff | G37: 78.75874 | H37: 81.91083 | I37: 9.956411949 | J37: 2577 | K37: 0.771 | L37: 5
A38: E02005205 | B38: Fylde 003 | C38: Fylde | D38: Male | E38: 80.26522 | F38: NoDiff | G38: 78.47755 | H38: 82.05289 | I38: 12.3559694 | J38: 2643 | K38: 0.764 | L38: 4
A39: E02005202 | B39: Chorley 014 | C39: Chorley | D39: Male | E39: 80.25577 | F39: NoDiff | G39: 78.2495 | H39: 82.26204 | I39: 12.34264538 | J39: 2651 | K39: 0.758 | L39: 4
A40: E02005192 | B40: Chorley 004 | C40: Chorley | D40: Male | E40: 80.25086 | F40: NoDiff | G40: 78.4904 | H40: 82.01133 | I40: 9.061295922 | J40: 2659 | K40: 0.751 | L40: 5
A41: E02005325 | B41: Wyre 007 | C41: Wyre | D41: Male | E41: 80.20079 | F41: NoDiff | G41: 78.48735 | H41: 81.91423 | I41: 10.09946893 | J41: 2703 | K41: 0.745 | L41: 4
A42: E02005196 | B42: Chorley 008 | C42: Chorley | D42: Male | E42: 80.04171 | F42: NoDiff | G42: 78.28358 | H42: 81.79983 | I42: 14.29326376 | J42: 2847 | K42: 0.738 | L42: 4
A43: E02005260 | B43: Preston 008 | C43: Preston | D43: Male | E43: 80.03424 | F43: NoDiff | G43: 78.34251 | H43: 81.72598 | I43: 12.60711087 | J43: 2852 | K43: 0.732 | L43: 4
A44: E02005295 | B44: South Ribble 009 | C44: South Ribble | D44: Male | E44: 80.01262 | F44: NoDiff | G44: 78.31621 | H44: 81.70902 | I44: 13.2969771 | J44: 2872 | K44: 0.725 | L44: 4
A45: E02005225 | B45: Lancaster 005 | C45: Lancaster | D45: Male | E45: 79.96817 | F45: NoDiff | G45: 77.18431 | H45: 82.75202 | I45: 10.42464754 | J45: 2913 | K45: 0.718 | L45: 4
A46: E02005306 | B46: West Lancashire 003 | C46: West Lancashire | D46: Male | E46: 79.95259 | F46: NoDiff | G46: 78.21443 | H46: 81.69076 | I46: 18.29120947 | J46: 2935 | K46: 0.712 | L46: 3
A47: E02005211 | B47: Fylde 009 | C47: Fylde | D47: Male | E47: 79.9437 | F47: NoDiff | G47: 78.34048 | H47: 81.54691 | I47: 9.416112658 | J47: 2948 | K47: 0.705 | L47: 5
A48: E02005258 | B48: Preston 006 | C48: Preston | D48: Male | E48: 79.93869 | F48: NoDiff | G48: 78.5142 | H48: 81.36319 | I48: 13.2992431 | J48: 2954 | K48: 0.699 | L48: 4
A49: E02005291 | B49: South Ribble 005 | C49: South Ribble | D49: Male | E49: 79.92784 | F49: NoDiff | G49: 78.11884 | H49: 81.73684 | I49: 13.14595771 | J49: 2967 | K49: 0.692 | L49: 4
A50: E02005309 | B50: West Lancashire 006 | C50: West Lancashire | D50: Male | E50: 79.90031 | F50: NoDiff | G50: 78.23587 | H50: 81.56476 | I50: 10.76523548 | J50: 3000 | K50: 0.686 | L50: 4
A51: E02005191 | B51: Chorley 003 | C51: Chorley | D51: Male | E51: 79.75192 | F51: NoDiff | G51: 77.85989 | H51: 81.64395 | I51: 10.64599193 | J51: 3140 | K51: 0.679 | L51: 4
A52: E02005318 | B52: West Lancashire 015 | C52: West Lancashire | D52: Male | E52: 79.74011 | F52: NoDiff | G52: 77.98902 | H52: 81.4912 | I52: 14.59207253 | J52: 3152 | K52: 0.673 | L52: 4
A53: E02005307 | B53: West Lancashire 004 | C53: West Lancashire | D53: Male | E53: 79.62575 | F53: NoDiff | G53: 78.06901 | H53: 81.18249 | I53: 13.42634263 | J53: 3259 | K53: 0.666 | L53: 4
A54: E02005250 | B54: Pendle 011 | C54: Pendle | D54: Male | E54: 79.59294 | F54: NoDiff | G54: 77.19693 | H54: 81.98894 | I54: 40.49439889 | J54: 3291 | K54: 0.66 | L54: 1
A55: E02006871 | B55: Lancaster 020 | C55: Lancaster | D55: Male | E55: 79.47046 | F55: NoDiff | G55: 77.94926 | H55: 80.99167 | I55: 21.53556309 | J55: 3390 | K55: 0.653 | L55: 3
A56: E02005186 | B56: Burnley 011 | C56: Burnley | D56: Male | E56: 79.35507 | F56: NoDiff | G56: 77.19545 | H56: 81.51468 | I56: 17.56424872 | J56: 3503 | K56: 0.647 | L56: 3
A57: E02005242 | B57: Pendle 003 | C57: Pendle | D57: Male | E57: 79.33239 | F57: NoDiff | G57: 76.9808 | H57: 81.68399 | I57: 17.0651444 | J57: 3532 | K57: 0.64 | L57: 3
A58: E02005240 | B58: Pendle 001 | C58: Pendle | D58: Male | E58: 79.32516 | F58: NoDiff | G58: 76.89316 | H58: 81.75715 | I58: 19.5900419 | J58: 3540 | K58: 0.633 | L58: 3
A59: E02005190 | B59: Chorley 002 | C59: Chorley | D59: Male | E59: 79.31737 | F59: NoDiff | G59: 77.52511 | H59: 81.10963 | I59: 10.90364748 | J59: 3551 | K59: 0.627 | L59: 4
A60: E02005276 | B60: Ribble Valley 007 | C60: Ribble Valley | D60: Male | E60: 79.30337 | F60: NoDiff | G60: 77.32293 | H60: 81.28382 | I60: 10.35509949 | J60: 3565 | K60: 0.62 | L60: 4
A61: E02005305 | B61: West Lancashire 002 | C61: West Lancashire | D61: Male | E61: 79.29968 | F61: NoDiff | G61: 77.34815 | H61: 81.25122 | I61: 17.34258324 | J61: 3569 | K61: 0.614 | L61: 3
A62: E02005193 | B62: Chorley 005 | C62: Chorley | D62: Male | E62: 79.28537 | F62: NoDiff | G62: 77.48213 | H62: 81.08861 | I62: 8.288194342 | J62: 3581 | K62: 0.607 | L62: 5
A63: E02005203 | B63: Fylde 001 | C63: Fylde | D63: Male | E63: 79.1807 | F63: NoDiff | G63: 77.02036 | H63: 81.34103 | I63: 13.12987781 | J63: 3660 | K63: 0.601 | L63: 4
A64: E02005308 | B64: West Lancashire 005 | C64: West Lancashire | D64: Male | E64: 79.09468 | F64: NoDiff | G64: 76.99911 | H64: 81.19025 | I64: 7.495793679 | J64: 3719 | K64: 0.594 | L64: 5
A65: E02005298 | B65: South Ribble 012 | C65: South Ribble | D65: Male | E65: 79.03496 | F65: NoDiff | G65: 76.74313 | H65: 81.32678 | I65: 11.97074089 | J65: 3775 | K65: 0.588 | L65: 4
A66: E02005235 | B66: Lancaster 015 | C66: Lancaster | D66: Male | E66: 78.98554 | F66: NoDiff | G66: 76.20478 | H66: 81.7663 | I66: 14.59719327 | J66: 3828 | K66: =PERCENTRANK($E$2:$E$155,E66) -> 0.581 | L66: 4
A67: E02005194 | B67: Chorley 006 | C67: Chorley | D67: Male | E67: 78.92318 | F67: NoDiff | G67: 76.84945 | H67: 80.9969 | I67: 23.67905677 | J67: 3889 | K67: 0.575 | L67: 2
A68: E02005272 | B68: Ribble Valley 003 | C68: Ribble Valley | D68: Male | E68: 78.8804 | F68: NoDiff | G68: 77.29398 | H68: 80.46682 | I68: 17.64511971 | J68: 3931 | K68: 0.568 | L68: 3
A69: E02005209 | B69: Fylde 007 | C69: Fylde | D69: Male | E69: 78.83468 | F69: NoDiff | G69: 76.9311 | H69: 80.73827 | I69: 11.79330535 | J69: 3958 | K69: 0.562 | L69: 4
A70: E02005220 | B70: Hyndburn 009 | C70: Hyndburn | D70: Male | E70: 78.80432 | F70: NoDiff | G70: 76.8233 | H70: 80.78534 | I70: 17.47598731 | J70: 3978 | K70: 0.555 | L70: 3
A71: E02005271 | B71: Ribble Valley 002 | C71: Ribble Valley | D71: Male | E71: 78.77516 | F71: NoDiff | G71: 76.82894 | H71: 80.72138 | I71: 9.409080525 | J71: 4003 | K71: 0.549 | L71: 5
A72: E02005212 | B72: Hyndburn 001 | C72: Hyndburn | D72: Male | E72: 78.73008 | F72: NoDiff | G72: 77.04914 | H72: 80.41102 | I72: 26.09773216 | J72: 4038 | K72: 0.542 | L72: 2
A73: E02005301 | B73: South Ribble 015 | C73: South Ribble | D73: Male | E73: 78.6089 | F73: NoDiff | G73: 76.30271 | H73: 80.9151 | I73: 23.92757854 | J73: 4134 | K73: 0.535 | L73: 2
A74: E02005299 | B74: South Ribble 013 | C74: South Ribble | D74: Male | E74: 78.572 | F74: NoDiff | G74: 76.54817 | H74: 80.59582 | I74: 17.40459847 | J74: 4166 | K74: 0.529 | L74: 3
A75: E02005198 | B75: Chorley 010 | C75: Chorley | D75: Male | E75: 78.54758 | F75: NoDiff | G75: 76.54252 | H75: 80.55264 | I75: 25.8536593 | J75: 4192 | K75: 0.522 | L75: 2
A76: E02005292 | B76: South Ribble 006 | C76: South Ribble | D76: Male | E76: 78.53042 | F76: NoDiff | G76: 75.97847 | H76: 81.08236 | I76: 21.20503264 | J76: 4205 | K76: 0.516 | L76: 3
A77: E02005294 | B77: South Ribble 008 | C77: South Ribble | D77: Male | E77: 78.52747 | F77: NoDiff | G77: 76.35977 | H77: 80.69517 | I77: 18.24405849 | J77: 4209 | K77: 0.509 | L77: 3
A78: E02005259 | B78: Preston 007 | C78: Preston | D78: Male | E78: 78.50944 | F78: NoDiff | G78: 76.74765 | H78: 80.27123 | I78: 32.76960614 | J78: 4228 | K78: 0.503 | L78: 1
A79: E02005207 | B79: Fylde 005 | C79: Fylde | D79: Male | E79: 78.34016 | F79: NoDiff | G79: 75.86209 | H79: 80.81822 | I79: 12.70881944 | J79: 4357 | K79: 0.496 | L79: 4
A80: E02005300 | B80: South Ribble 014 | C80: South Ribble | D80: Male | E80: 78.33918 | F80: NoDiff | G80: 76.33118 | H80: 80.34718 | I80: 13.85808181 | J80: 4358 | K80: 0.49 | L80: 4
A81: E02005176 | B81: Burnley 001 | C81: Burnley | D81: Male | E81: 78.29968 | F81: NoDiff | G81: 76.78593 | H81: 79.81344 | I81: 19.8196647 | J81: 4390 | K81: 0.483 | L81: 3
A82: E02005331 | B82: Wyre 013 | C82: Wyre | D82: Male | E82: 78.21198 | F82: NoDiff | G82: 76.124 | H82: 80.29995 | I82: 13.2903262 | J82: 4444 | K82: 0.477 | L82: 4
A83: E02005281 | B83: Rossendale 004 | C83: Rossendale | D83: Male | E83: 78.1968 | F83: NoDiff | G83: 76.46286 | H83: 79.93074 | I83: 24.97181676 | J83: 4462 | K83: 0.47 | L83: 2
A84: E02005204 | B84: Fylde 002 | C84: Fylde | D84: Male | E84: 78.14934 | F84: NoDiff | G84: 76.61566 | H84: 79.68302 | I84: 12.86554471 | J84: 4495 | K84: 0.464 | L84: 4
A85: E02005329 | B85: Wyre 011 | C85: Wyre | D85: Male | E85: 78.0072 | F85: NoDiff | G85: 76.25295 | H85: 79.76144 | I85: 19.14977779 | J85: 4597 | K85: 0.457 | L85: 3
A86: E02005201 | B86: Chorley 013 | C86: Chorley | D86: Male | E86: 77.97679 | F86: NoDiff | G86: 76.30506 | H86: 79.64853 | I86: 18.81132294 | J86: 4626 | K86: 0.45 | L86: 3
A87: E02005236 | B87: Lancaster 016 | C87: Lancaster | D87: Male | E87: 77.9439 | F87: NoDiff | G87: 76.47385 | H87: 79.41395 | I87: 22.9657087 | J87: 4643 | K87: 0.444 | L87: 2
A88: E02005238 | B88: Lancaster 018 | C88: Lancaster | D88: Male | E88: 77.7418 | F88: NoDiff | G88: 75.4047 | H88: 80.07891 | I88: 15.23660452 | J88: 4778 | K88: 0.437 | L88: 3
A89: E02005180 | B89: Burnley 005 | C89: Burnley | D89: Male | E89: 77.72808 | F89: NoDiff | G89: 75.56934 | H89: 79.88681 | I89: 16.29401637 | J89: 4789 | K89: 0.431 | L89: 3
A90: E02005327 | B90: Wyre 009 | C90: Wyre | D90: Male | E90: 77.62985 | F90: NoDiff | G90: 75.25423 | H90: 80.00546 | I90: 13.6889553 | J90: 4849 | K90: 0.424 | L90: 4
A91: E02005275 | B91: Ribble Valley 006 | C91: Ribble Valley | D91: Male | E91: 77.54397 | F91: NoDiff | G91: 75.29778 | H91: 79.79016 | I91: 8.816836623 | J91: 4908 | K91: 0.418 | L91: 5
A92: E02005293 | B92: South Ribble 007 | C92: South Ribble | D92: Male | E92: 77.53745 | F92: Worse | G92: 75.87886 | H92: 79.19605 | I92: 18.43845655 | J92: 4913 | K92: 0.411 | L92: 3
A93: E02005322 | B93: Wyre 004 | C93: Wyre | D93: Male | E93: 77.47472 | F93: Worse | G93: 75.77442 | H93: 79.17502 | I93: 15.66008892 | J93: 4945 | K93: 0.405 | L93: 3
A94: E02005237 | B94: Lancaster 017 | C94: Lancaster | D94: Male | E94: 77.44689 | F94: Worse | G94: 75.83384 | H94: 79.05994 | I94: 16.19525561 | J94: 4960 | K94: 0.398 | L94: 3
A95: E02005214 | B95: Hyndburn 003 | C95: Hyndburn | D95: Male | E95: 77.36474 | F95: Worse | G95: 75.32366 | H95: 79.40582 | I95: 27.51331052 | J95: 5011 | K95: 0.392 | L95: 2
A96: E02005264 | B96: Preston 012 | C96: Preston | D96: Male | E96: 77.33833 | F96: Worse | G96: 75.50841 | H96: 79.16825 | I96: 26.74799142 | J96: 5032 | K96: 0.385 | L96: 2
A97: E02005234 | B97: Lancaster 014 | C97: Lancaster | D97: Male | E97: 77.33706 | F97: NoDiff | G97: 75.09038 | H97: 79.58374 | I97: 24.4735194 | J97: 5036 | K97: 0.379 | L97: 2
A98: E02005326 | B98: Wyre 008 | C98: Wyre | D98: Male | E98: 77.28866 | F98: Worse | G98: 75.61536 | H98: 78.96195 | I98: 26.4626926 | J98: 5073 | K98: 0.372 | L98: 2
A99: E02005284 | B99: Rossendale 007 | C99: Rossendale | D99: Male | E99: 77.19777 | F99: Worse | G99: 75.43662 | H99: 78.95892 | I99: 11.88345556 | J99: 5124 | K99: 0.366 | L99: 4
A100: E02005286 | B100: Rossendale 009 | C100: Rossendale | D100: Male | E100: 77.17443 | F100: Worse | G100: 75.16319 | H100: 79.18567 | I100: 22.24818043 | J100: 5138 | K100: 0.359 | L100: 2
A101: E02005213 | B101: Hyndburn 002 | C101: Hyndburn | D101: Male | E101: 77.10373 | F101: Worse | G101: 75.60692 | H101: 78.60053 | I101: 24.30240113 | J101: 5186 | K101: 0.352 | L101: 2
A102: E02005233 | B102: Lancaster 013 | C102: Lancaster | D102: Male | E102: 77.0867 | F102: Worse | G102: 75.21643 | H102: 78.95696 | I102: 23.88696211 | J102: 5197 | K102: 0.346 | L102: 2
A103: E02005268 | B103: Preston 016 | C103: Preston | D103: Male | E103: 77.05119 | F103: Worse | G103: 75.00265 | H103: 79.09973 | I103: 36.97901859 | J103: 5217 | K103: 0.339 | L103: 1
A104: E02005323 | B104: Wyre 005 | C104: Wyre | D104: Male | E104: 77.00834 | F104: Worse | G104: 74.92577 | H104: 79.09091 | I104: 32.61570809 | J104: 5239 | K104: 0.333 | L104: 1
A105: E02005256 | B105: Preston 004 | C105: Preston | D105: Male | E105: 76.90246 | F105: Worse | G105: 75.0613 | H105: 78.74363 | I105: 8.674542564 | J105: 5287 | K105: 0.326 | L105: 5
A106: E02005224 | B106: Lancaster 004 | C106: Lancaster | D106: Male | E106: 76.89139 | F106: Worse | G106: 74.55959 | H106: 79.2232 | I106: 18.27160923 | J106: 5292 | K106: 0.32 | L106: 3
A107: E02005246 | B107: Pendle 007 | C107: Pendle | D107: Male | E107: 76.88254 | F107: Worse | G107: 74.37905 | H107: 79.38603 | I107: 43.53768886 | J107: 5296 | K107: 0.313 | L107: 1
A108: E02005228 | B108: Lancaster 008 | C108: Lancaster | D108: Male | E108: 76.86918 | F108: Worse | G108: 74.68561 | H108: 79.05275 | I108: 29.92617223 | J108: 5305 | K108: 0.307 | L108: 2
A109: E02005251 | B109: Pendle 012 | C109: Pendle | D109: Male | E109: 76.72838 | F109: Worse | G109: 74.46315 | H109: 78.9936 | I109: 24.66085766 | J109: 5378 | K109: 0.3 | L109: 2
A110: E02005267 | B110: Preston 015 | C110: Preston | D110: Male | E110: 76.63216 | F110: Worse | G110: 73.92291 | H110: 79.34141 | I110: 41.05792893 | J110: 5427 | K110: 0.294 | L110: 1
A111: E02005280 | B111: Rossendale 003 | C111: Rossendale | D111: Male | E111: 76.56617 | F111: Worse | G111: 74.81698 | H111: 78.31536 | I111: 31.52213525 | J111: 5458 | K111: 0.287 | L111: 2
A112: E02005262 | B112: Preston 010 | C112: Preston | D112: Male | E112: 76.50813 | F112: Worse | G112: 74.16945 | H112: 78.8468 | I112: 12.24738562 | J112: 5492 | K112: 0.281 | L112: 4
A113: E02005320 | B113: Wyre 002 | C113: Wyre | D113: Male | E113: 76.49823 | F113: Worse | G113: 74.39407 | H113: 78.60239 | I113: 24.30270527 | J113: 5498 | K113: 0.274 | L113: 2
A114: E02006884 | B114: Rossendale 010 | C114: Rossendale | D114: Male | E114: 76.42864 | F114: Worse | G114: 74.6757 | H114: 78.18158 | I114: 30.47092521 | J114: 5533 | K114: 0.267 | L114: 2
A115: E02005265 | B115: Preston 013 | C115: Preston | D115: Male | E115: 76.41859 | F115: Worse | G115: 74.63432 | H115: 78.20287 | I115: 25.30325938 | J115: 5541 | K115: 0.261 | L115: 2
A116: E02005244 | B116: Pendle 005 | C116: Pendle | D116: Male | E116: 76.36186 | F116: Worse | G116: 74.33992 | H116: 78.38381 | I116: 31.04705129 | J116: 5570 | K116: 0.254 | L116: 2
A117: E02005278 | B117: Rossendale 001 | C117: Rossendale | D117: Male | E117: 76.31286 | F117: Worse | G117: 74.544 | H117: 78.08172 | I117: 12.41348789 | J117: 5601 | K117: 0.248 | L117: 4
A118: E02005279 | B118: Rossendale 002 | C118: Rossendale | D118: Male | E118: 76.28659 | F118: Worse | G118: 74.56593 | H118: 78.00724 | I118: 27.24556649 | J118: 5617 | K118: 0.241 | L118: 2
A119: E02005208 | B119: Fylde 006 | C119: Fylde | D119: Male | E119: 76.1743 | F119: Worse | G119: 74.42417 | H119: 77.92443 | I119: 25.66327821 | J119: 5680 | K119: 0.235 | L119: 2
A120: E02005219 | B120: Hyndburn 008 | C120: Hyndburn | D120: Male | E120: 76.12167 | F120: Worse | G120: 74.16166 | H120: 78.08168 | I120: 24.30866679 | J120: 5716 | K120: 0.228 | L120: 2
A121: E02005179 | B121: Burnley 004 | C121: Burnley | D121: Male | E121: 76.11269 | F121: Worse | G121: 74.32776 | H121: 77.89762 | I121: 35.51378806 | J121: 5719 | K121: 0.222 | L121: 1
A122: E02005252 | B122: Pendle 013 | C122: Pendle | D122: Male | E122: 76.08009 | F122: Worse | G122: 74.07156 | H122: 78.08862 | I122: 31.93582103 | J122: 5733 | K122: 0.215 | L122: 2
A123: E02005200 | B123: Chorley 012 | C123: Chorley | D123: Male | E123: 75.98942 | F123: Worse | G123: 74.26809 | H123: 77.71076 | I123: 27.59907112 | J123: 5773 | K123: 0.209 | L123: 2
A124: E02005243 | B124: Pendle 004 | C124: Pendle | D124: Male | E124: 75.77236 | F124: Worse | G124: 73.50937 | H124: 78.03534 | I124: 35.65689464 | J124: 5887 | K124: 0.202 | L124: 1
A125: E02005189 | B125: Chorley 001 | C125: Chorley | D125: Male | E125: 75.53397 | F125: Worse | G125: 73.91118 | H125: 77.15677 | I125: 34.78139996 | J125: 6011 | K125: 0.196 | L125: 1
A126: E02005197 | B126: Chorley 009 | C126: Chorley | D126: Male | E126: 75.51288 | F126: Worse | G126: 73.40766 | H126: 77.6181 | I126: 31.59173478 | J126: 6014 | K126: 0.189 | L126: 2
A127: E02005257 | B127: Preston 005 | C127: Preston | D127: Male | E127: 75.31601 | F127: Worse | G127: 73.44685 | H127: 77.18518 | I127: 35.63012562 | J127: 6068 | K127: 0.183 | L127: 1
A128: E02005303 | B128: South Ribble 017 | C128: South Ribble | D128: Male | E128: 75.13062 | F128: Worse | G128: 72.72615 | H128: 77.53508 | I128: 32.05432096 | J128: 6143 | K128: 0.176 | L128: 2
A129: E02005249 | B129: Pendle 010 | C129: Pendle | D129: Male | E129: 74.98527 | F129: Worse | G129: 73.12996 | H129: 76.84058 | I129: 47.8554617 | J129: 6192 | K129: 0.169 | L129: 1
A130: E02005230 | B130: Lancaster 010 | C130: Lancaster | D130: Male | E130: 74.98316 | F130: Worse | G130: 72.52873 | H130: 77.4376 | I130: 38.51117288 | J130: 6193 | K130: =PERCENTRANK($E$2:$E$155,E130) -> 0.163 | L130: 1
A131: E02005321 | B131: Wyre 003 | C131: Wyre | D131: Male | E131: 74.98129 | F131: Worse | G131: 72.09577 | H131: 77.86681 | I131: 33.71008369 | J131: 6194 | K131: 0.156 | L131: 1
A132: E02005218 | B132: Hyndburn 007 | C132: Hyndburn | D132: Male | E132: 74.97845 | F132: Worse | G132: 72.89219 | H132: 77.06471 | I132: 29.84949292 | J132: 6195 | K132: 0.15 | L132: 2
A133: E02006881 | B133: Burnley 014 | C133: Burnley | D133: Male | E133: 74.85944 | F133: Worse | G133: 73.08261 | H133: 76.63626 | I133: 34.90027043 | J133: 6232 | K133: 0.143 | L133: 1
A134: E02005181 | B134: Burnley 006 | C134: Burnley | D134: Male | E134: 74.85901 | F134: Worse | G134: 72.53189 | H134: 77.18614 | I134: 36.82013428 | J134: 6234 | K134: 0.137 | L134: 1
A135: E02005317 | B135: West Lancashire 014 | C135: West Lancashire | D135: Male | E135: 74.8414 | F135: Worse | G135: 72.75832 | H135: 76.92449 | I135: 53.23583166 | J135: 6239 | K135: 0.13 | L135: 1
A136: E02005231 | B136: Lancaster 011 | C136: Lancaster | D136: Male | E136: 74.7113 | F136: Worse | G136: 72.76566 | H136: 76.65694 | I136: 39.33536108 | J136: 6280 | K136: 0.124 | L136: 1
A137: E02005263 | B137: Preston 011 | C137: Preston | D137: Male | E137: 74.70148 | F137: Worse | G137: 72.50726 | H137: 76.8957 | I137: 33.76116134 | J137: 6285 | K137: 0.117 | L137: 1
A138: E02005183 | B138: Burnley 008 | C138: Burnley | D138: Male | E138: 74.24237 | F138: Worse | G138: 71.78889 | H138: 76.69585 | I138: 30.25445443 | J138: 6430 | K138: 0.111 | L138: 2
A139: E02005215 | B139: Hyndburn 004 | C139: Hyndburn | D139: Male | E139: 74.21827 | F139: Worse | G139: 72.4994 | H139: 75.93713 | I139: 34.64065641 | J139: 6432 | K139: 0.104 | L139: 1
A140: E02005316 | B140: West Lancashire 013 | C140: West Lancashire | D140: Male | E140: 74.08526 | F140: Worse | G140: 71.91969 | H140: 76.25082 | I140: 42.31894048 | J140: 6466 | K140: 0.098 | L140: 1
A141: E02005269 | B141: Preston 017 | C141: Preston | D141: Male | E141: 74.00732 | F141: Worse | G141: 71.89942 | H141: 76.11522 | I141: 37.78401714 | J141: 6488 | K141: 0.091 | L141: 1
A142: E02005319 | B142: Wyre 001 | C142: Wyre | D142: Male | E142: 73.81803 | F142: Worse | G142: 71.92013 | H142: 75.71593 | I142: 48.03330355 | J142: 6518 | K142: 0.084 | L142: 1
A143: E02005216 | B143: Hyndburn 005 | C143: Hyndburn | D143: Male | E143: 73.72968 | F143: Worse | G143: 71.42541 | H143: 76.03395 | I143: 40.07932318 | J143: 6530 | K143: 0.078 | L143: 1
A144: E02005217 | B144: Hyndburn 006 | C144: Hyndburn | D144: Male | E144: 73.72578 | F144: Worse | G144: 71.98363 | H144: 75.46792 | I144: 55.8205504 | J144: 6532 | K144: 0.071 | L144: 1
A145: E02005313 | B145: West Lancashire 010 | C145: West Lancashire | D145: Male | E145: 73.65493 | F145: Worse | G145: 71.93094 | H145: 75.37891 | I145: 43.06693297 | J145: 6544 | K145: 0.065 | L145: 1
A146: E02005314 | B146: West Lancashire 011 | C146: West Lancashire | D146: Male | E146: 73.59537 | F146: Worse | G146: 71.21197 | H146: 75.97877 | I146: 26.20537303 | J146: 6550 | K146: 0.058 | L146: 2
A147: E02005178 | B147: Burnley 003 | C147: Burnley | D147: Male | E147: 73.52515 | F147: Worse | G147: 71.39973 | H147: 75.65056 | I147: 58.71680887 | J147: 6563 | K147: 0.052 | L147: 1
A148: E02005177 | B148: Burnley 002 | C148: Burnley | D148: Male | E148: 73.04069 | F148: Worse | G148: 70.44194 | H148: 75.63944 | I148: 37.58184526 | J148: 6607 | K148: 0.045 | L148: 1
A149: E02005261 | B149: Preston 009 | C149: Preston | D149: Male | E149: 72.94635 | F149: Worse | G149: 71.2326 | H149: 74.66009 | I149: 52.32478716 | J149: 6615 | K149: 0.039 | L149: 1
A150: E02005266 | B150: Preston 014 | C150: Preston | D150: Male | E150: 72.91196 | F150: Worse | G150: 70.90236 | H150: 74.92155 | I150: 49.69340323 | J150: 6621 | K150: 0.032 | L150: 1
A151: E02005185 | B151: Burnley 010 | C151: Burnley | D151: Male | E151: 72.86678 | F151: Worse | G151: 71.0925 | H151: 74.64105 | I151: 64.43705369 | J151: 6623 | K151: 0.026 | L151: 1
A152: E02005248 | B152: Pendle 009 | C152: Pendle | D152: Male | E152: 72.62847 | F152: Worse | G152: 70.08767 | H152: 75.16928 | I152: 51.44224958 | J152: 6647 | K152: 0.019 | L152: 1
A153: E02005229 | B153: Lancaster 009 | C153: Lancaster | D153: Male | E153: 71.93815 | F153: Worse | G153: 69.53119 | H153: 74.34512 | I153: 58.93295645 | J153: 6702 | K153: 0.013 | L153: 1
A154: E02005226 | B154: Lancaster 006 | C154: Lancaster | D154: Male | E154: 71.30959 | F154: Worse | G154: 69.35864 | H154: 73.26054 | I154: 50.50226762 | J154: 6733 | K154: 0.006 | L154: 1
A155: E02005182 | B155: Burnley 007 | C155: Burnley | D155: Male | E155: 70.49001 | F155: Worse | G155: 67.87076 | H155: 73.10926 | I155: 52.99626639 | J155: 6765 | K155: 0 | L155: 1
A156: E02005245 | B156: Pendle 006 | C156: Pendle | D156: Female | E156: 84.30811 | F156: Better | G156: 82.37955 | H156: 86.23667 | I156: 12.20089759 | J156: 191 | K156: 0.972 | L156: 4
A157: E02005302 | B157: South Ribble 016 | C157: South Ribble | D157: Female | E157: 84.06248 | F157: Better | G157: 81.97035 | H157: 86.15461 | I157: 10.0842833 | J157: 239 | K157: 0.964 | L157: 4
A158: E02005296 | B158: South Ribble 010 | C158: South Ribble | D158: Female | E158: 83.40344 | F158: Better | G158: 81.23674 | H158: 85.57015 | I158: 6.323003433 | J158: 430 | K158: 0.936 | L158: 5
A159: E02005273 | B159: Ribble Valley 004 | C159: Ribble Valley | D159: Female | E159: 82.85281 | F159: Better | G159: 80.98072 | H159: 84.72489 | I159: 8.283385304 | J159: 648 | K159: 0.904 | L159: 5
A160: E02005288 | B160: South Ribble 002 | C160: South Ribble | D160: Female | E160: 82.68905 | F160: Better | G160: 80.52912 | H160: 84.84899 | I160: 11.00847095 | J160: 725 | K160: 0.893 | L160: 4
A161: E02005254 | B161: Preston 002 | C161: Preston | D161: Female | E161: 82.56432 | F161: Better | G161: 80.31964 | H161: 84.80901 | I161: 7.402556374 | J161: 790 | K161: 0.883 | L161: 5
A162: E02005277 | B162: Ribble Valley 008 | C162: Ribble Valley | D162: Female | E162: 82.47609 | F162: Better | G162: 81.34604 | H162: 83.60614 | I162: 5.675156155 | J162: 842 | K162: 0.876 | L162: 5
A163: E02005330 | B163: Wyre 012 | C163: Wyre | D163: Female | E163: 82.35833 | F163: Better | G163: 80.71704 | H163: 83.99962 | I163: 8.512078995 | J163: 909 | K163: 0.866 | L163: 5
A164: E02005184 | B164: Burnley 009 | C164: Burnley | D164: Female | E164: 82.33825 | F164: Better | G164: 80.2635 | H164: 84.413 | I164: 12.63106608 | J164: 919 | K164: 0.864 | L164: 4
A165: E02005255 | B165: Preston 003 | C165: Preston | D165: Female | E165: 82.33074 | F165: Better | G165: 80.82324 | H165: 83.83824 | I165: 7.018068896 | J165: 927 | K165: 0.863 | L165: 5
A166: E02005304 | B166: West Lancashire 001 | C166: West Lancashire | D166: Female | E166: 82.08322 | F166: Better | G166: 80.683 | H166: 83.48344 | I166: 8.347092058 | J166: 1092 | K166: 0.839 | L166: 5
A167: E02005290 | B167: South Ribble 004 | C167: South Ribble | D167: Female | E167: 82.00532 | F167: Better | G167: 80.14885 | H167: 83.86179 | I167: 7.818768585 | J167: 1143 | K167: 0.831 | L167: 5
A168: E02005332 | B168: Wyre 014 | C168: Wyre | D168: Female | E168: 82.00053 | F168: Better | G168: 80.03966 | H168: 83.9614 | I168: 8.28135197 | J168: 1149 | K168: 0.83 | L168: 5
A169: E02005289 | B169: South Ribble 003 | C169: South Ribble | D169: Female | E169: 81.86884 | F169: Better | G169: 79.96437 | H169: 83.77331 | I169: 4.990262441 | J169: 1230 | K169: 0.818 | L169: 5
A170: E02005222 | B170: Lancaster 002 | C170: Lancaster | D170: Female | E170: 81.85198 | F170: Better | G170: 79.98094 | H170: 83.72302 | I170: 13.82243902 | J170: 1248 | K170: 0.816 | L170: 4
A171: E02005210 | B171: Fylde 008 | C171: Fylde | D171: Female | E171: 81.77 | F171: Better | G171: 80.59845 | H171: 82.94156 | I171: 10.7980356 | J171: 1312 | K171: 0.806 | L171: 4
A172: E02005324 | B172: Wyre 006 | C172: Wyre | D172: Female | E172: 81.71035 | F172: Better | G172: 79.96836 | H172: 83.45233 | I172: 10.7893199 | J172: 1360 | K172: 0.799 | L172: 4
A173: E02005311 | B173: West Lancashire 008 | C173: West Lancashire | D173: Female | E173: 81.65727 | F173: Better | G173: 79.238 | H173: 84.07655 | I173: 12.21595239 | J173: 1401 | K173: 0.793 | L173: 4
A174: E02005312 | B174: West Lancashire 009 | C174: West Lancashire | D174: Female | E174: 81.56771 | F174: Better | G174: 78.79925 | H174: 84.33616 | I174: 16.25892116 | J174: 1474 | K174: 0.783 | L174: 3
A175: E02005195 | B175: Chorley 007 | C175: Chorley | D175: Female | E175: 81.38458 | F175: Better | G175: 79.69398 | H175: 83.07519 | I175: 11.66493635 | J175: 1619 | K175: 0.761 | L175: 4
A176: E02005241 | B176: Pendle 002 | C176: Pendle | D176: Female | E176: 81.20961 | F176: Better | G176: 78.81257 | H176: 83.60666 | I176: 21.3143984 | J176: 1762 | K176: 0.74 | L176: 3
A177: E02005199 | B177: Chorley 011 | C177: Chorley | D177: Female | E177: 81.1923 | F177: Better | G177: 79.10972 | H177: 83.27488 | I177: 7.435853655 | J177: 1773 | K177: 0.738 | L177: 5
A178: E02005297 | B178: South Ribble 011 | C178: South Ribble | D178: Female | E178: 81.06829 | F178: Better | G178: 79.40747 | H178: 82.72911 | I178: 6.59804826 | J178: 1869 | K178: 0.724 | L178: 5
A179: E02005274 | B179: Ribble Valley 005 | C179: Ribble Valley | D179: Female | E179: 80.954 | F179: Better | G179: 78.96026 | H179: 82.94775 | I179: 7.068874105 | J179: 1970 | K179: 0.709 | L179: 5
A180: E02005270 | B180: Ribble Valley 001 | C180: Ribble Valley | D180: Female | E180: 80.93659 | F180: Better | G180: 79.38009 | H180: 82.49309 | I180: 14.14894181 | J180: 1983 | K180: 0.708 | L180: 4
A181: E02005315 | B181: West Lancashire 012 | C181: West Lancashire | D181: Female | E181: 80.9337 | F181: Better | G181: 79.32405 | H181: 82.54335 | I181: 7.528416667 | J181: 1985 | K181: 0.707 | L181: 5
A182: E02005239 | B182: Lancaster 019 | C182: Lancaster | D182: Female | E182: 80.91763 | F182: Better | G182: 79.31444 | H182: 82.52083 | I182: 10.72278544 | J182: 1999 | K182: 0.705 | L182: 4
A183: E02005287 | B183: South Ribble 001 | C183: South Ribble | D183: Female | E183: 80.61992 | F183: NoDiff | G183: 78.40125 | H183: 82.83859 | I183: 4.033889033 | J183: 2287 | K183: 0.663 | L183: 5
A184: E02005206 | B184: Fylde 004 | C184: Fylde | D184: Female | E184: 80.55568 | F184: NoDiff | G184: 78.64233 | H184: 82.46902 | I184: 19.86699188 | J184: 2352 | K184: 0.653 | L184: 3
A185: E02005310 | B185: West Lancashire 007 | C185: West Lancashire | D185: Female | E185: 80.54634 | F185: NoDiff | G185: 78.35898 | H185: 82.73371 | I185: 12.52229932 | J185: 2361 | K185: 0.652 | L185: 4
A186: E02005328 | B186: Wyre 010 | C186: Wyre | D186: Female | E186: 80.47482 | F186: NoDiff | G186: 78.52232 | H186: 82.42732 | I186: 10.81609554 | J186: 2432 | K186: 0.641 | L186: 4
A187: E02005253 | B187: Preston 001 | C187: Preston | D187: Female | E187: 80.46473 | F187: NoDiff | G187: 78.66832 | H187: 82.26113 | I187: 12.96394735 | J187: 2442 | K187: 0.64 | L187: 4
A188: E02005221 | B188: Lancaster 001 | C188: Lancaster | D188: Female | E188: 80.46186 | F188: Better | G188: 78.9931 | H188: 81.93062 | I188: 13.84811208 | J188: 2444 | K188: 0.64 | L188: 4
A189: E02005223 | B189: Lancaster 003 | C189: Lancaster | D189: Female | E189: 80.45474 | F189: NoDiff | G189: 78.61232 | H189: 82.29717 | I189: 8.457987312 | J189: 2450 | K189: 0.639 | L189: 5
A190: E02005285 | B190: Rossendale 008 | C190: Rossendale | D190: Female | E190: 80.39508 | F190: NoDiff | G190: 78.89618 | H190: 81.89399 | I190: 11.26781672 | J190: 2520 | K190: 0.628 | L190: 4
A191: E02005247 | B191: Pendle 008 | C191: Pendle | D191: Female | E191: 80.33479 | F191: NoDiff | G191: 78.75874 | H191: 81.91083 | I191: 9.956411949 | J191: 2577 | K191: 0.62 | L191: 5
A192: E02005205 | B192: Fylde 003 | C192: Fylde | D192: Female | E192: 80.26522 | F192: NoDiff | G192: 78.47755 | H192: 82.05289 | I192: 12.3559694 | J192: 2643 | K192: 0.61 | L192: 4
A193: E02005202 | B193: Chorley 014 | C193: Chorley | D193: Female | E193: 80.25577 | F193: NoDiff | G193: 78.2495 | H193: 82.26204 | I193: 12.34264538 | J193: 2651 | K193: 0.609 | L193: 4
A194: E02005192 | B194: Chorley 004 | C194: Chorley | D194: Female | E194: 80.25086 | F194: NoDiff | G194: 78.4904 | H194: 82.01133 | I194: 9.061295922 | J194: 2659 | K194: 0.608 | L194: 5
A195: E02005325 | B195: Wyre 007 | C195: Wyre | D195: Female | E195: 80.20079 | F195: NoDiff | G195: 78.48735 | H195: 81.91423 | I195: 10.09946893 | J195: 2703 | K195: 0.602 | L195: 4
A196: E02005196 | B196: Chorley 008 | C196: Chorley | D196: Female | E196: 80.04171 | F196: NoDiff | G196: 78.28358 | H196: 81.79983 | I196: 14.29326376 | J196: 2847 | K196: 0.58 | L196: 4
A197: E02005260 | B197: Preston 008 | C197: Preston | D197: Female | E197: 80.03424 | F197: NoDiff | G197: 78.34251 | H197: 81.72598 | I197: 12.60711087 | J197: 2852 | K197: 0.58 | L197: 4
A198: E02005295 | B198: South Ribble 009 | C198: South Ribble | D198: Female | E198: 80.01262 | F198: NoDiff | G198: 78.31621 | H198: 81.70902 | I198: 13.2969771 | J198: 2872 | K198: 0.577 | L198: 4
A199: E02005225 | B199: Lancaster 005 | C199: Lancaster | D199: Female | E199: 79.96817 | F199: NoDiff | G199: 77.18431 | H199: 82.75202 | I199: 10.42464754 | J199: 2913 | K199: 0.571 | L199: 4
A200: E02005306 | B200: West Lancashire 003 | C200: West Lancashire | D200: Female | E200: 79.95259 | F200: NoDiff | G200: 78.21443 | H200: 81.69076 | I200: 18.29120947 | J200: 2935 | K200: 0.567 | L200: 3
... 109 more rows
